Cogmind - Beta 10.2 @@@ ROGUE MODE // 2020.12.05 @ 18:38:19 Player: Boris Result: Destroyed by as-85537 with Assembled Blade Performance ------------- Evolutions (0) 0 Regions Visited (2) 400 Robots Destroyed (8) 40 Value Destroyed (159) 159 Prototype IDs (2) 40 Alien Tech Used (0) 0 Bonus (0) 0 TOTAL SCORE: 639 Bonus ------- None Cogmind --------- Core Integrity 0/250 Matter 300/300 Energy 100/100 System Corruption 9% Temperature Cool (0) Movement Core (550) Ox10 Location -10/Mines Parts ------- > --- POWER (1) -------- (None) > --- PROPULSION (2) --- (None) > --- UTILITY (2) ------ Large Storage Unit Large Storage Unit > --- WEAPON (2) ------- (None) > --- INVENTORY (16) --- Ion Engine Light Ion Engine Light Nuclear Core Light Treads Light Treads Advanced Treads Improved Heat Sink EM Pulse Gun Particle Cannon Ion Cannon Light Assault Rifle Light Assault Rifle Light Assault Rifle Mining Claw Mining Claw Katana Peak State ------------ > --- POWER ------------ Ion Engine > --- PROPULSION ------- Compact Wheel Compact Wheel > --- UTILITY ---------- Large Storage Unit Large Storage Unit > --- WEAPON ----------- Particle Cannon Light Assault Rifle > --- INVENTORY -------- Ion Engine Light Ion Engine Light Nuclear Core Light Treads Light Treads Advanced Treads Improved Heat Sink Improved Heat Sink Improved Heat Sink EM Pulse Gun Shock Rifle Ion Cannon Mining Claw Mining Claw Mining Claw Katana [Rating: 11] Favorites ----------- Power Light Ion Engine Engine Light Ion Engine Propulsion Compact Wheel Treads Light Treads Wheel Compact Wheel Utility Small Storage Unit Storage Small Storage Unit Weapon Particle Cannon Energy Gun Medium Laser Energy Cannon Particle Cannon Ballistic Gun Light Assault Rifle Slashing Weapon Mining Claw Build | -11 -10 -10 ------- Run | Scr Mat Min Slots Evolved . | . . . Power . | . . . Propulsion . | . . . Utility . | . . . Weapon . | . . . Parts Attached 30 | 7 20 3 Power 4 | 1 3 . Engine 4 | 1 3 . Core . | . . . Reactor . | . . . Propulsion 7 | 2 5 . Treads 2 | 1 1 . Leg . | . . . Wheel 5 | 1 4 . Hover . | . . . Flight . | . . . Utility 5 | 2 3 . Device . | . . . Storage 5 | 2 3 . Processor . | . . . Hackware . | . . . Protection . | . . . Artifact . | . . . Weapon 14 | 2 9 3 Energy Gun 2 | 1 . 1 Energy Cannon 3 | . 3 . Ballistic Gun 6 | 1 4 1 Ballistic Cannon . | . . . Launcher . | . . . Special Weapon . | . . . Impact Weapon . | . . . Slashing Weapon 3 | . 2 1 Piercing Weapon . | . . . Special Melee Weapon . | . . . Unidentified Prototypes . | . . . Parts Lost 8 | . 3 5 Power 1 | . . 1 Propulsion 3 | . 1 2 Utility . | . . . Weapon 4 | . 2 2 Highest Loss Streak 5 | . 3 5 Average Slot Usage (%) 98 | . 98 98 Engine 13 | . 13 13 Treads 6 | . 8 . Wheel 20 | . 18 27 Storage 28 | . 28 28 Energy Gun 1 | . 1 1 Energy Cannon 12 | . 12 12 Ballistic Gun 9 | . 9 11 Slashing Weapon 3 | . 4 1 Naked Turns . | . . . Heaviest Build 43 | 14 43 43 Greatest Support 32 | 20 32 32 Greatest Overweight (x) 3 | 1 3 1 Average Overweight (x) 1 | . 1 . Largest Inventory Capacity 16 | 8 16 16 Average Capacity 11 | 5 11 16 Most Carried 16 | 7 11 16 Average Carried 9 | 4 8 15 Final Capacity 16 | 8 16 16 Final Carried 16 | 7 10 16 Class Distribution -------------------- 100% | Mutant Dominant Class ---------------- Mutant | -10/Materials Mutant | -10/Mines Resources | -11 -10 -10 ----------- Run | Scr Mat Min Matter Collected 482 | 247 178 57 Remotely . | . . . Salvage Created 338 | 88 228 22 Parts 20 | 4 12 4 Haulers Intercepted 1 | . 1 . Recyclers Shooed 2 | . 2 . Parts Field Recycled . | . . . Retrieved Matter . | . . . Parts Self-Destructed . | . . . Prevented . | . . . Kills | -11 -10 -10 ------- Run | Scr Mat Min Combat Hostiles Destroyed 5 | . 3 2 Guns 1 | . 1 . Cannons 4 | . 2 2 Classes Destroyed 5 | 1 3 1 Hauler 1 | . 1 . Recycler 1 | 1 . . Watcher 1 | . 1 . Swarmer 2 | . . 2 Grunt 3 | . 3 . Best Kill Streak 2 | 1 1 2 Combat Bots Only 2 | . 1 2 Max Kills in Single Turn 1 | 1 1 1 Gunslinging . | . . . Exploded . | . . . Melee . | . . . Uniques/NPCs Destroyed . | . . . Combat | -11 -10 -10 -------- Run | Scr Mat Min Damage Taken 975 | . 419 556 Core 265 | . 57 208 Absorbed by Shields . | . . . Core Remaining (%) 100 | 100 . . Volleys Fired 25 | 3 19 3 Largest 2 | 2 2 2 Hottest 88 | 70 88 88 Shots Fired 41 | 6 29 6 Gun 26 | 6 17 3 Cannon 15 | . 12 3 Launcher . | . . . Special . | . . . Kinetic 23 | 3 17 3 Thermal 18 | 3 12 3 Explosive . | . . . Electromagnetic . | . . . Robot Hit Streak 9 | 2 9 1 Robot Miss Streak 3 | 2 3 2 Penetration Max . | . . . Secondary Targets . | . . . Shots Hit Robots 33 | 3 28 2 Core Hits 16 | 3 10 3 Critical Hits . | . . . Critical Kills . | . . . Critical Parts Destroyed . | . . . Melee Attacks 31 | . 25 6 Impact . | . . . Slashing 31 | . 25 6 Piercing . | . . . Sneak Attacks 1 | . 1 . Combat Hostiles . | . . . Follow-up Attacks . | . . . Damage Inflicted 623 | 45 523 55 Guns 132 | 33 99 . Cannons 249 | . 205 44 Explosions . | . . . Melee 217 | . 217 . Ramming 25 | 12 2 11 Kinetic 119 | 20 99 . Thermal 262 | 13 205 44 Explosive . | . . . Electromagnetic . | . . . Impact . | . . . Slashing 217 | . 217 . Piercing . | . . . Highest Corruption 9 | . . 9 Average Corruption 5 | . . 5 Corruption Purged . | . . . Effects 1 | . . 1 Matter Fused 1 | . . 1 Overload Shots . | . . . Overflow Damage 49 | . 49 . Projectiles . | . . . Explosions . | . . . Melee 49 | . 49 . Knockbacks 1 | 1 . . Impact 1 | 1 . . Kinetic . | . . . Secondary . | . . . Self-Inflicted Damage 5 | . . 5 Shots . | . . . Rammed 10 | 8 1 1 Targets Rammed 10 | 8 1 1 Kicked . | . . . Crushed . | . . . Highest Temperature 230 | 40 230 76 Average Temperature 85 | 21 108 32 Received Heat Transfer 414 | . 234 180 Siege Activations . | . . . Robots Corrupted . | . . . Combat Hostiles . | . . . Parts Fried . | . . . Impact Corruptions . | . . . Robots Melted . | . . . Combat Hostiles . | . . . Parts Melted . | . . . Heat Transferred 481 | 37 370 74 Parts Sabotaged . | . . . Parts Stolen . | . . . Parts Stripped . | . . . Power Chain Reactions . | . . . Missiles Intercepted . | . . . Alert | -11 -10 -10 ------- Run | Scr Mat Min Peak Influence 148 | 5 148 51 Initial 11 | . 3 11 Average 32 | . 34 38 Maximum Alert Level . | . . . Low Security (%) 100 | 100 100 100 Level 1 . | . . . Level 2 . | . . . Level 3 . | . . . Level 4 . | . . . Level 5 . | . . . High Security . | . . . Max Security . | . . . Squads Dispatched 2 | . 2 . Investigation . | . . . Extermination . | . . . Reinforcement 2 | . 2 . Assault . | . . . Garrison . | . . . Intercept . | . . . Construction Impeded . | . . . Haulers Reinforced . | . . . Stealth | -11 -10 -10 --------- Run | Scr Mat Min Distress Signals 2 | . 2 . Communications Jammed . | . . . Distress Signals . | . . . Times Spotted 46 | . 15 31 Peak Tracking Total 20 | . 5 20 Tactical Retreats 2 | . 1 1 Traps | -11 -10 -10 ------- Run | Scr Mat Min Traps Triggered 6 | . 5 1 Indirectly . | . . . Trap Hack Attempts . | . . . Triggered . | . . . Disarmed . | . . . Reprogrammed . | . . . Reused . | . . . Traps Extracted . | . . . Installed . | . . . Triggered . | . . . Machines | -11 -10 -10 ---------- Run | Scr Mat Min Machines Disabled . | . . . Max in Single Turn . | . . . Machines Sabotaged . | . . . Garrisons Compromised . | . . . Overloaded Fab Kills . | . . . Fab Network Shutdowns . | . . . Hacking | -11 -10 -10 --------- Run | Scr Mat Min Machines Accessed 8 | . 7 1 Terminals 5 | . 5 . Fabricators . | . . . Repair Stations . | . . . Recycling Units 2 | . 2 . Scanalyzers . | . . . Garrison Access . | . . . Total Hacks 34 | . 33 1 Successful 22 | . 21 1 Failed 11 | . 11 . Catastrophic . | . . . Database Lockouts 1 | . 1 . Manual 24 | . 24 . Terminals 29 | . 29 . Fabricators . | . . . Repair Stations . | . . . Recycling Units 4 | . 4 . Scanalyzers . | . . . Garrison Access . | . . . Terminal Hacks 12 | . 11 1 Robot Analysis 1 | . 1 . Prototype ID Bank 1 | . 1 . Open Door 1 | . . 1 Branch Access Points 1 | . 1 . Emergency Access Points 1 | . 1 . Terminal Index 1 | . 1 . Locate Traps 1 | . 1 . Registered Components 1 | . 1 . Zone Layout 4 | . 4 . Fabricator Hacks . | . . . Repair Station Hacks . | . . . Recycling Unit Hacks 2 | . 2 . Retrieve Components 2 | . 2 . Scanalyzer . | . . . Garrison Access Hacks . | . . . Unauthorized Hacks 8 | . 8 . Terminals 7 | . 7 . Track 3 | . 3 . Botnet 3 | . 3 . Operators 1 | . 1 . Fabricators . | . . . Repair Stations . | . . . Recycling Units 1 | . 1 . Mask 1 | . 1 . Scanalyzers . | . . . Garrison Access . | . . . Data Cores Recovered . | . . . Used . | . . . Hacking Detections 7 | . 7 . Full Trace Events . | . . . Feedback Events . | . . . Feedback Blocked . | . . . Robot Schematics Acquired . | . . . Robots Built . | . . . Matter . | . . . Time . | . . . Total Robot Build Rating . | . . . Part Schematics Acquired . | . . . Parts Built . | . . . Matter . | . . . Time . | . . . Total Part Build Rating . | . . . Parts Repaired . | . . . Time . | . . . Parts Recycled . | . . . Recycled Matter . | . . . Retrieved Matter . | . . . Retrieved Components 3 | . 3 . Parts Scanalyzed . | . . . Part Schematics Acquired . | . . . Parts Damaged . | . . . Bothacking | -11 -10 -10 ------------ Run | Scr Mat Min Used RIF Installer . | . . . Robots Hacked . | . . . Non-combat . | . . . Combat . | . . . Robot Hacks Applied . | . . . Relay Couplers Released . | . . . Robots Rewired . | . . . Allies Hacked . | . . . Hacks Repelled . | . . . Allies | -11 -10 -10 -------- Run | Scr Mat Min Total Allies 2 | . . 2 Largest Group 2 | . . 2 Highest-Rated Group 45 | . . 45 Highest-Rated Ally 31 | . . 31 Total Orders . | . . . Ally Attacks 9 | . . 9 Total Damage 73 | . . 73 Kills 2 | . . 2 Allies Corrupted . | . . . Allies Melted . | . . . Intel | -11 -10 -10 ------- Run | Scr Mat Min Robot Analysis Total 1 | . 1 . Derelict Logs Recovered . | . . . Drone Launches . | . . . Drone Recoveries . | . . . Exploration | -11 -10 -10 ------------- Run | Scr Mat Min Turns Passed 1593 | 118 1153 322 Spaces Moved 1077 | 68 773 236 Core 9 | 3 6 . Treads 33 | 32 1 . Legs . | . . . Wheels 1035 | 33 766 236 Hover . | . . . Flight . | . . . Fastest Speed 50 | 50 80 100 Average Speed 98 | 117 93 109 Slowest Speed 200 | 160 200 110 Overloaded Moves . | . . . Propulsion Burnouts . | . . . Robots Hopped . | . . . Cave-ins Triggered . | . . . Exploration Rate (%) 41 | 4 75 44 Regions Visited 2 Branch Regions 1 Pre-discovered Areas . | . . . Known Exits Taken 1 | . 1 . Unknown Exits Taken 1 | 1 . . Scrap Searched 2 | . . 2 Spaces Dug 11 | . 7 4 Terrain Destroyed 11 | . 7 4 Melee 11 | . 7 4 Projectile . | . . . AOE . | . . . Terrain Rammed . | . . . Walls Destroyed . | . . . Machines Disabled . | . . . Actions | -11 -10 -10 --------- Run | Scr Mat Min Total 1490 | 92 1122 276 Wait 282 | . 265 17 Move 1075 | 67 772 236 Hop . | . . . Pick Up 25 | 7 10 8 Fast Attach 17 | 7 10 . Attach 3 | . 3 . Detach . | . . . Swap 10 | . 7 3 Drop 12 | . 10 2 Fire 25 | 3 19 3 Melee 31 | . 25 6 Ram 1 | . . 1 Kick . | . . . Crush 9 | 8 1 . Escape Stasis . | . . . Rewire . | . . . Trap . | . . . Miscellaneous . | . . . Route ------- -11/Scrapyard -10/Materials (discovered 5 exits: [*Mat x3] / *Min x2) -10/Mines History --------- Turn | Location | Event 25 | -11/Scrapyard | Discovered new exit (range 16) 119 | -11/Scrapyard | Entered Materials 138 | -10/Materials | Discovered new exit (range 15) 181 | -10/Materials | Discovered new exit (range 17) 203 | -10/Materials | Identified exit to Mines 305 | -10/Materials | Build established: Mutant 489 | -10/Materials | Discovered new exit (range 5) 722 | -10/Materials | Central database locked down 745 | -10/Materials | Discovered new exit (range 7) 866 | -10/Materials | Lost 3 parts (1n2w) 1272 | -10/Materials | Entered Mines 1304 | -10/Mines | Met a Derelict who couldn't figure out how to use a Trap Extractor 1526 | -10/Mines | Assembled infested the area 1531 | -10/Mines | Assisted by a Guerilla fighting off Assembled 1590 | -10/Mines | Core integrity fell below 50% 1593 | -10/Mines | Core integrity fell below 20% 1594 | -10/Mines | Destroyed by as-85537 with Assembled Blade Last Messages --------------- 01580_ Shock Rifle destroyed. 01580_ Mining Claw destroyed. 01580_ System corrupted by crushing effect (+4). 01581_ The unstable cave ceiling collapses. 01581_ 6 Matter crushed. 01581_ D-53 Grenadier destroyed. 01583_ The unstable cave ceiling collapses. 01584_ Critical hit. 01584_ Ion Engine destroyed. 01589_ Slammed into as-85537. 01589_ Com. Wheel destroyed. 01589_ System corrupted by crushing effect (+5). 01589_ Com. Wheel permanently disabled. 01589_ Destabilizing: Short circuit. 01590_ System corrupted: Matter fused (-7). 01590_ Acquired 3 matter. 01591_ The unstable cave ceiling collapses. 01591_ Lgt. Deuterium Engine crushed. 01591_ Broken Com. Wheel destroyed. 01593_ as-57201 destroyed. Map ----- +----------------------------------------------------+ | ??????????????????????????????? | | ??????????????????????????????? | | ????????????????????????? ## | | ?????????????????????????# | | ?????????????????????????# | | ??????????????????????????# | | ???????????????????????????# | | ???????????????????????????### | | ?????????????????????????????## | | ??????????#???#???????????????? | | ????# ???? ??? ??????????????? | | ????# ??"" """ """ #????????### | | ????# """ """ """ #??????? | | ????# """ "" " " #????? | | ????# % #????? # | | ????# "" " #????# ?? | | ????# #???? #?? | | ????# #??## #??? | | ????# #### #??? | | ?????? % ## #??? | | ???????# #% ## #???? | | ??????## a # #????? | | ??????# a # #?????? | | ??###?## a# # ;# ##????? | | ??# ##% a a% ## ##???? | | ?# < @ a a=%[ # ##### | | ?# a a ### % #% | | ?# ##?##%%=%! | | ?## ###???##### ##### #### | | ??######?????????#####???# #??# | | ?????????????????????????# ## | | ????????????????????????## | | ????????????????????????# | | ????????????????????????# | | ????????????????????????## | | ?????????????????????????## | | ???????????????????????????#### | | ??????????????????????????????? | | | | | | | | | | | | | | | | | | | | | | | | | +----------------------------------------------------+ Best States ------------- Heat Dissipation 25 Energy Generation 10 Energy Capacity 250 Matter Stores 300 Matter Capacity 300 Sight Range 16 Terrain Scan Density 10 Evasion (%) 44 Recoil Reduction 1 Item Schematics ----------------- None Robot Schematics ------------------ None Fabricated ------------ Nothing Alien Tech Used ----------------- None Achievements -------------- None Challenges ------------ None Game ------ Seed HeavyTiamatInverter Manual? 0 Play Time 00:17:27 Cumulative 177.6 hours Start 2020.12.05 @ 18:21:44 End 2020.12.05 @ 18:38:19 Sessions 1 Manual Loads 0 Difficulty Rogue Special Mode None Game No. 59 Rogue 44 Adventurer 15 Explorer 0 Win Type - Total 5 Types 2/0/1/1/1/0/0/0/0 Lore% 82 Gallery% 82 Achievement% 68 Wizard Run 0 Options --------- ASCII 0 Keyboard 0 Movement Numpad Keybinds 0 Fullscreen 1 Font 18/SmallcapsGlow Map View 76x50 Tactical HUD 1 Map Filters NONE Filters NONE Steam 1 RUN: 79e9d4f4-d084-4940-a471-f511715447ca